bitfinex-derivatives/quotes_SOLF0:USTF0_20251020
["timestamp","ask_amount","ask_price","bid_price","bid_amount"]
[1760960239122,4.702,191.38,191.32,2.79]
[1760960241725,2.81,191.39,191.32,2.79]
[1760960241922,3.40932774,191.41,191.32,2.79]
[1760960242422,2.83,191.4,191.32,2.79]
[1760960243718,2.83,191.36,191.29,2.61]
[1760960245817,2.83,191.36,191.29,7.3139]
[1760960247725,7.5324,191.36,191.29,7.3139]
[1760960248929,4.702,191.38,191.3,7.3137]
[1760960249626,4.7022,191.37,191.3,7.3137]
[1760960250320,4.7024,191.36,191.3,7.3137]
[1760960250825,2.83,191.37,191.3,7.3137]
[1760960251422,2.83,191.4,191.32,2.61]
[1760960251922,2.83,191.4,191.34,6.01932774]
[1760960252127,2.83,191.45,191.34,6.01932774]
[1760960252523,19.06932774,191.46,191.34,2.61]
[1760960252826,4.7014,191.4,191.34,10.72202774]
[1760960253031,2.83,191.42,191.34,3.40932774]
[1760960253226,2.83,191.46,191.38,2.61]
[1760960253429,2.83,191.42,191.38,2.61]
[1760960253823,4.7007,191.43,191.37,8.11122774]
[1760960254329,2.83,191.49,191.4,3.40932774]
[1760960254526,2.83,191.49,191.41,2.61]
[1760960255324,2.83,191.49,191.43,3.40932774]
[1760960255531,2.83,191.53,191.45,2.61]
[1760960255720,2.83,191.53,191.46,3.40932774]
[1760960255923,4.6986,191.52,191.46,3.40932774]
[1760960256126,2.83,191.53,191.46,3.40932774]
[1760960256524,4.6977,191.55,191.47,7.3094]
[1760960258728,2.83,191.56,191.49,6.01932774]
[1760960260728,2.83,191.6,191.5,2.61]
[1760960260925,2.83,191.6,191.49,3.40932774]
[1760960260926,2.83,191.64,191.53,2.61]
[1760960261132,2.83,191.64,191.56,2.61]
[1760960261519,2.83,191.64,191.58,6.01932774]
[1760960262522,4.6949,191.67,191.59,2.61]
[1760960263733,2.83,191.68,191.59,2.61]
[1760960264734,4.6947,191.67,191.59,2.61]
[1760960264930,2.83,191.68,191.6,4.6964]
[1760960265133,2.83,191.68,191.61,6.01932774]
[1760960265538,7.5246,191.68,191.61,6.01932774]
[1760960269534,7.424,191.7,191.62,2.7]
[1760960270232,2.73,191.7,191.63,2.7]
[1760960270540,4.6935,191.72,191.65,2.7]
[1760960271037,2.73,191.73,191.65,2.7]
[1760960272038,2.73,191.73,191.65,7.3949]
[1760960272438,7.4225,191.76,191.66,2.7]
[1760960272634,7.4225,191.76,191.67,4.6947]
[1760960272834,7.4225,191.76,191.67,8.10402774]
[1760960274040,4.6929,191.75,191.67,4.6947]
[1760960274538,4.6929,191.75,191.68,2.7]
[1760960275146,2.73,191.76,191.68,7.3943]
[1760960275336,2.73,191.76,191.69,2.7]
[1760960275643,2.73,191.76,191.69,7.394]
[1760960277842,2.73,191.76,191.69,2.7]
[1760960279046,7.4227,191.76,191.69,2.7]
[1760960279443,2.73,191.76,191.69,2.7]
[1760960279743,2.73,191.74,191.66,6.10932774]
[1760960280746,2.73,191.74,191.66,10.80412774]
[1760960281343,3.40932774,191.74,191.63,6.10932774]
[1760960281549,2.73,191.73,191.63,2.7]
[1760960282443,4.6939,191.7,191.63,2.7]
[1760960282648,2.73,191.72,191.63,2.7]
[1760960283055,2.73,191.7,191.63,2.7]
[1760960283544,2.73,191.71,191.61,2.7]
[1760960283748,2.73,191.71,191.62,2.7]
[1760960284138,2.73,191.71,191.64,2.7]
[1760960284545,6.13932774,191.75,191.64,3.40932774]
[1760960284746,4.6931,191.74,191.68,2.17578781]
[1760960284954,4.6931,191.74,191.68,4.87578781]
[1760960286755,4.6931,191.74,191.68,2.7]
[1760960287652,2.73,191.72,191.65,4.6951]
[1760960288056,7.4237,191.72,191.64,2.7]
[1760960288256,2.73,191.72,191.64,2.7]
[1760960288555,5.4393073,191.77,191.61,23.94]
[1760960288556,2.73,191.76,191.61,23.94]
[1760960288747,2.73,191.72,191.61,23.94]
[1760960289147,2.73,191.65,191.61,23.94]
[1760960289350,4.6951,191.66,191.61,23.94]
[1760960289351,2.73,191.72,191.62,2.7]
[1760960289848,21.0993073,191.77,191.61,23.94]
[1760960289849,2.73,191.76,191.61,23.94]
[1760960290149,4.6948,191.67,191.6,2.7]
[1760960291058,2.73,191.65,191.59,4.6966]
[1760960291356,2.73,191.65,191.57,7.397]
[1760960292751,4.6956,191.64,191.57,7.397]
[1760960292951,5.4393073,191.69,191.52,2.7]
[1760960293151,2.73,191.68,191.52,2.7]
[1760960293354,4.697,191.58,191.52,2.7]
[1760960293549,2.82,191.59,191.52,2.7]
[1760960294462,2.82,191.64,191.52,2.7]
[1760960295952,7.5155,191.64,191.56,4.6972]
[1760960296149,7.5155,191.64,191.57,2.88]
[1760960296555,4.6958,191.63,191.57,2.88]
[1760960296751,4.6958,191.63,191.54,4.6978]
[1760960297053,5.4393073,191.69,191.53,2.88]
[1760960297054,4.6966,191.6,191.53,2.88]
[1760960297253,7.5166,191.6,191.53,2.88]
[1760960297773,2.82,191.6,191.53,2.88]
[1760960298062,2.82,191.6,191.48,2.8]
[1760960298462,4.6971,191.58,191.49,4.6989]
[1760960298665,2.82,191.6,191.5,2.8]
[1760960299659,8.58983973,191.59,191.5,2.8]
[1760960299863,2.82,191.57,191.47,4.6995]
[1760960300162,2.82,191.56,191.46,2.8]
[1760960301879,4.698,191.54,191.46,7.4998]
[1760960302674,4.698,191.54,191.47,4.6994]
[1760960304667,7.5174,191.56,191.49,2.8]
[1760960305166,7.5174,191.56,191.49,7.4989]
[1760960307372,7.5174,191.56,191.5,4.6987]
[1760960310375,2.82,191.56,191.49,2.8]
[1760960310572,5.4393073,191.61,191.48,4.6992]
[1760960310766,14.02236376,191.61,191.48,4.6992]
[1760960310966,2.82,191.59,191.48,4.6992]
[1760960311174,2.82,191.6,191.48,4.6992]
[1760960311571,5.4393073,191.61,191.48,7.4992]
[1760960311767,2.82,191.6,191.48,7.4992]
[1760960311966,10.09071379,191.61,191.48,7.4992]
[1760960312163,4.698,191.54,191.48,7.4992]
[1760960312672,2.82,191.55,191.48,7.4992]
[1760960312673,2.82,191.55,191.48,2.8]
[1760960312877,2.82,191.48,191.44,2.8]
[1760960313071,2.82,191.48,191.44,4.9807082]
[1760960314071,2.82,191.48,191.44,2.8]
[1760960314269,2.82,191.48,191.44,4.9807082]
[1760960314466,2.82,191.47,191.44,2.1807082]
[1760960314671,2.82,191.5,191.4,2.8]
[1760960315071,5.00012029,191.55,191.4,2.8]
[1760960315072,2.82,191.53,191.4,2.8]
[1760960315269,15.66,191.53,191.39,14.82]
[1760960315564,2.82,191.52,191.39,14.82]
[1760960316169,15.66,191.53,191.39,14.82]
[1760960316474,2.82,191.52,191.4,2.8]
[1760960317368,15.76199059,191.53,191.41,2.8]
[1760960317369,7.5198,191.46,191.41,2.8]
[1760960317571,2.82,191.45,191.41,2.8]
[1760960319972,4.6998,191.46,191.41,2.8]
[1760960320272,4.6998,191.46,191.4,4.7012]
[1760960320472,4.6998,191.46,191.42,2.8]
[1760960320681,7.5198,191.46,191.42,2.8]
[1760960321584,4.6995,191.48,191.42,2.8]
[1760960322182,4.6995,191.48,191.42,7.5007]
[1760960322574,4.6995,191.48,191.42,2.8]
[1760960322970,2.82,191.51,191.45,2.8]
[1760960323183,4.6985,191.52,191.45,2.8]
[1760960323680,4.6985,191.52,191.41,5.00012029]
[1760960323681,2.82,191.54,191.48,2.8]
[1760960324071,2.82,191.54,191.45,2.8]
[1760960324268,7.5187,191.51,191.45,7.4999]
[1760960324680,7.5187,191.51,191.45,2.8]
[1760960324985,2.82,191.48,191.41,7.80012029]
[1760960325980,4.6992,191.49,191.44,4.7002]
[1760960326183,2.82,191.48,191.44,4.7002]
[1760960326383,2.82,191.48,191.42,2.8]
[1760960327176,7.5195,191.48,191.42,7.5007]
[1760960328380,4.6995,191.48,191.42,7.5007]
[1760960328677,2.83,191.51,191.43,4.7004]
[1760960328882,2.83,191.51,191.42,2.8]
[1760960329386,7.5289,191.5,191.45,7.47]
[1760960329985,7.5289,191.5,191.45,4.7]
[1760960330186,7.5289,191.5,191.46,2.77]
[1760960332788,2.83,191.55,191.44,2.77]
[1760960332983,5.00012029,191.62,191.48,2.77]
[1760960332984,3.94109463,191.6,191.48,2.77]
[1760960333284,4.6973,191.57,191.51,4.6984]
[1760960333479,2.83,191.57,191.51,4.6984]
[1760960334675,4.697,191.58,191.53,2.77]
[1760960334880,6.77109463,191.6,191.53,2.17959089]
[1760960335087,2.83,191.6,191.53,2.17959089]
[1760960335278,7.5265,191.6,191.53,6.87759089]
[1760960336182,2.83,191.6,191.53,2.17959089]
[1760960336385,3.95014847,191.61,191.56,2.77]
[1760960336583,2.83,191.62,191.56,2.77]
[1760960336775,6.78208634,191.61,191.56,2.77]
[1760960336980,2.83,191.63,191.56,2.77]
[1760960337177,3.95208386,191.62,191.56,2.77]
[1760960337381,2.83,191.6,191.56,2.77]
[1760960338080,2.83,191.59,191.55,4.6974]
[1760960338283,2.83,191.59,191.52,2.77]
[1760960338586,11.36053196,191.62,191.52,2.77]
[1760960338888,3.95467085,191.61,191.52,2.77]
[1760960339078,3.95467085,191.61,191.55,4.6974]
[1760960339280,7.526,191.62,191.55,2.77]
[1760960340791,2.83,191.62,191.55,2.77]
[1760960341094,3.95654603,191.64,191.55,2.77]
[1760960341286,2.83,191.65,191.59,7.4664]
[1760960341681,4.6946,191.68,191.61,4.696]
[1760960341893,8.65081097,191.68,191.61,4.696]
[1760960342192,4.6946,191.68,191.61,7.466]
[1760960342388,4.6949,191.67,191.61,2.77]
[1760960342600,3.95400017,191.68,191.52,2.77]
[1760960342898,2.83,191.64,191.52,2.77]
[1760960343098,2.83,191.62,191.52,2.77]
[1760960344091,4.6968,191.59,191.52,2.77]
[1760960344889,4.6962,191.61,191.53,4.698]
[1760960345691,4.6962,191.61,191.54,4.6977]
[1760960346585,4.99347606,191.65,191.47,22.75347606]
[1760960346586,4.6957,191.63,191.55,2.77]
[1760960346989,2.83,191.66,191.55,2.77]
[1760960347292,4.6956,191.64,191.55,2.77]
[1760960347496,2.83,191.63,191.55,2.77]
[1760960347892,4.696,191.62,191.55,2.77]
[1760960348794,2.83,191.63,191.55,2.77]
[1760960348993,4.6954,191.65,191.55,2.77]
[1760960349298,7.5256,191.64,191.56,4.6973]
[1760960349501,2.83,191.64,191.56,4.6973]
[1760960350988,4.6959,191.63,191.56,4.6973]
[1760960351594,2.83,191.61,191.55,2.77]
[1760960353102,7.5263,191.61,191.55,2.77]
[1760960353298,2.83,191.61,191.54,4.6978]
[1760960354001,4.6966,191.6,191.54,4.6978]
[1760960354405,2.83,191.61,191.55,4.6975]
[1760960354601,2.83,191.61,191.54,2.69]
[1760960355504,2.68,191.67,191.54,2.69]
[1760960356293,2.68,191.63,191.54,2.69]
[1760960358003,4.6963,191.61,191.55,4.6975]
[1760960358302,2.68,191.63,191.54,2.69]
[1760960359212,4.696,191.62,191.56,4.6973]
[1760960362108,7.3063,191.61,191.56,4.6973]
[1760960362308,7.3063,191.61,191.54,2.68]
[1760960363312,4.6966,191.6,191.54,2.68]
[1760960363814,2.61,191.58,191.5,2.68]
[1760960364614,7.307,191.58,191.52,4.6982]
[1760960364814,2.61,191.58,191.52,4.6982]
[1760960366117,4.6973,191.57,191.53,2.68]
[1760960366510,7.3073,191.57,191.53,2.68]
[1760960367817,2.61,191.57,191.53,7.378]
[1760960368016,4.6968,191.59,191.5,2.68]
[1760960369013,2.61,191.64,191.56,2.68]
[1760960369215,3.40440581,191.65,191.52,6.08440581]
[1760960369412,15.66470118,191.65,191.52,6.08440581]
[1760960369618,2.61,191.64,191.52,6.08440581]
[1760960370013,4.6962,191.61,191.54,4.6977]
[1760960371023,4.6962,191.61,191.55,7.3775]
[1760960371816,4.6958,191.63,191.57,2.68]
[1760960372016,2.61,191.64,191.57,2.68]
[1760960373022,7.306,191.62,191.57,2.68]
[1760960373225,7.306,191.62,191.57,4.697]
[1760960373525,7.306,191.62,191.58,2.68]
[1760960374320,2.61,191.61,191.57,4.697]
[1760960374526,2.61,191.61,191.57,7.377]
[1760960375125,7.306,191.62,191.57,7.377]
[1760960375325,2.61,191.61,191.57,7.377]
[1760960375726,7.68763608,191.65,191.58,4.6968]
[1760960375727,4.6955,191.64,191.58,4.6968]
[1760960376722,6.54737842,191.65,191.58,2.68]
[1760960376723,2.61,191.65,191.58,2.68]
[1760960378025,4.695,191.66,191.6,4.6963]
[1760960378220,2.61,191.64,191.6,4.6963]
[1760960378727,2.61,191.69,191.58,7.3768]
[1760960378930,2.61,191.67,191.58,7.3768]
[1760960379127,2.61,191.65,191.58,7.3768]
[1760960379329,10.97292756,191.65,191.58,7.3768]
[1760960379532,2.61,191.65,191.58,7.3768]
[1760960379722,2.61,191.63,191.54,2.68]
[1760960379921,2.61,191.61,191.54,2.68]
[1760960380123,3.40440581,191.61,191.52,4.6982]
[1760960380327,2.61,191.58,191.52,4.6982]
[1760960380523,6.01440581,191.58,191.47,2.68]
[1760960380736,4.6977,191.55,191.49,4.699]
[1760960381236,8.64257095,191.57,191.52,2.68]
[1760960381440,4.6973,191.57,191.5,2.68]
[1760960381732,2.61,191.59,191.5,2.68]
[1760960381935,7.3068,191.59,191.53,2.68]
[1760960382138,6.01440581,191.63,191.53,2.68]
[1760960382441,4.6962,191.61,191.55,4.6975]
[1760960383640,2.61,191.59,191.55,4.6975]
[1760960384032,4.6965,191.6,191.55,4.6975]
[1760960384239,2.61,191.59,191.55,7.3775]
[1760960385245,14.9213923,191.63,191.56,4.6972]
[1760960385440,12.3113923,191.62,191.56,4.6972]
[1760960385734,8.36688208,191.62,191.56,4.6972]
[1760960386139,3.75873313,191.62,191.56,4.6972]
[1760960386544,4.6963,191.61,191.54,7.3777]
[1760960387837,2.83,191.6,191.51,4.6984]
[1760960388042,2.83,191.58,191.51,4.6984]
[1760960388234,2.83,191.58,191.5,2.86]
[1760960389037,4.59155082,191.59,191.46,12.39033865]
[1760960389232,2.83,191.56,191.46,2.86]
[1760960391146,4.698,191.54,191.48,4.6992]
[1760960392048,4.6982,191.53,191.48,4.6992]
[1760960392238,2.83,191.52,191.48,4.6992]
[1760960392445,2.83,191.52,191.48,7.5592]
[1760960393447,2.83,191.52,191.48,2.86]
[1760960394745,2.83,191.52,191.49,2.86]
[1760960394949,4.6982,191.53,191.49,2.86]
[1760960395351,7.5277,191.55,191.49,2.86]
[1760960396143,4.6973,191.57,191.51,2.86]
[1760960396743,2.83,191.58,191.48,2.86]
[1760960396744,4.6975,191.56,191.48,2.86]
[1760960397545,4.6975,191.56,191.5,4.6988]
[1760960398050,2.83,191.58,191.5,4.6988]
[1760960399955,4.6975,191.56,191.5,4.6988]
[1760960400154,4.6975,191.56,191.52,2.86]
[1760960400354,2.83,191.59,191.53,2.86]
[1760960400850,4.697,191.58,191.53,4.6981]
[1760960401054,2.83,191.57,191.53,4.6981]
[1760960401256,2.83,191.57,191.53,7.5581]
[1760960401455,4.697,191.58,191.53,7.5581]
[1760960401656,2.83,191.57,191.53,7.5581]
[1760960402655,4.6965,191.6,191.54,4.6978]
[1760960402965,2.83,191.59,191.49,2.86]
[1760960403354,2.83,191.56,191.5,4.6987]
[1760960404861,2.83,191.56,191.49,2.86]
[1760960405061,2.83,191.56,191.48,4.6993]
[1760960405256,2.83,191.55,191.48,4.6993]
[1760960406065,7.5282,191.53,191.48,7.5593]
[1760960406263,2.83,191.57,191.49,7.559]
[1760960406861,2.83,191.53,191.49,2.86]
[1760960407459,4.698,191.54,191.49,2.86]
[1760960407763,7.5276,191.56,191.5,2.86]
[1760960407958,7.5276,191.56,191.5,5.04037141]
[1760960408161,2.83,191.56,191.5,5.04037141]
[1760960408766,4.6978,191.55,191.5,5.04037141]
[1760960408966,5.01037141,191.6,191.51,2.86]
[1760960409165,5.01037141,191.6,191.52,2.18037141]
[1760960409464,8.94356446,191.6,191.52,2.18037141]
[1760960409665,5.01037141,191.6,191.52,2.18037141]
[1760960410056,4.6967,191.59,191.53,4.6981]
[1760960411264,2.83,191.6,191.54,4.6977]
[1760960411470,2.83,191.6,191.54,5.04037141]
[1760960411858,7.5265,191.6,191.54,5.04037141]
[1760960412965,7.5265,191.6,191.54,9.73807141]
[1760960414360,4.6968,191.59,191.54,9.73807141]
[1760960414565,2.63,191.57,191.54,5.04037141]
[1760960414761,2.63,191.58,191.52,4.6983]
[1760960414960,2.63,191.58,191.53,4.91037141]
[1760960415866,2.63,191.57,191.53,2.73]
[1760960416067,2.63,191.56,191.5,9.60917141]
[1760960416478,2.63,191.56,191.48,6.87957141]
[1760960416869,2.63,191.56,191.49,2.73]
[1760960417071,2.18037141,191.55,191.48,2.18037141]
[1760960417271,2.63,191.54,191.48,2.18037141]
[1760960417764,7.328,191.54,191.48,2.18037141]
[1760960417962,2.63,191.54,191.48,5.03037141]
[1760960418979,4.6983,191.53,191.48,5.03037141]
[1760960419181,7.4683,191.53,191.49,2.85]
[1760960419369,7.4683,191.53,191.48,2.18037141]
[1760960419569,4.6983,191.53,191.48,2.18037141]
[1760960419970,4.6983,191.53,191.49,2.85]
[1760960420275,2.77,191.52,191.49,2.85]
[1760960420575,2.77,191.52,191.48,5.03037141]
[1760960420776,7.4685,191.52,191.48,2.18037141]
[1760960420977,7.4685,191.52,191.46,4.6997]
[1760960420978,2.77,191.52,191.46,2.18037141]
[1760960421484,7.4688,191.51,191.46,2.18037141]
[1760960421685,2.77,191.51,191.47,2.85]
[1760960421978,2.77,191.51,191.46,2.18037141]
[1760960422178,4.6982,191.53,191.47,7.5495]
[1760960422485,4.6982,191.53,191.47,9.72987141]
[1760960423481,2.77,191.51,191.45,6.88037141]
[1760960424982,2.77,191.51,191.47,2.85]
[1760960425186,7.4685,191.52,191.48,2.85]
[1760960426880,2.77,191.51,191.46,4.6998]
[1760960427084,2.77,191.5,191.46,4.6998]
[1760960427284,4.6985,191.52,191.47,2.85]
[1760960427486,7.4685,191.52,191.46,4.6998]
[1760960427681,7.4685,191.52,191.46,7.5498]
[1760960431578,2.77,191.5,191.46,7.5498]
[1760960431784,2.77,191.49,191.46,2.85]
[1760960431980,7.4687,191.51,191.45,5.03037141]
[1760960433085,7.4687,191.51,191.45,9.73037141]
[1760960433487,7.4687,191.51,191.45,5.03037141]
[1760960434990,4.699,191.5,191.45,5.03037141]
[1760960435181,7.469,191.5,191.46,2.85]
[1760960436086,2.77,191.49,191.46,2.85]
[1760960436282,7.469,191.5,191.46,2.85]
[1760960437491,2.77,191.5,191.46,7.5497]
[1760960437694,4.6985,191.52,191.46,7.5497]
[1760960437695,2.77,191.51,191.47,2.85]
[1760960437899,4.6985,191.52,191.46,9.73007141]
[1760960438085,7.4685,191.52,191.48,2.85]
[1760960438795,6.87847141,191.54,191.48,2.85]
[1760960438993,2.77,191.53,191.48,2.85]
[1760960439785,8.88280787,191.54,191.48,2.85]
[1760960440102,2.77,191.52,191.48,2.85]
[1760960440395,2.77,191.51,191.48,2.85]
[1760960441199,2.77,191.52,191.48,2.85]
[1760960441398,4.6983,191.53,191.48,2.85]
[1760960441599,2.77,191.51,191.48,2.85]
[1760960445205,4.6983,191.53,191.48,4.6993]
[1760960445403,7.4683,191.53,191.49,2.85]
[1760960445714,7.4683,191.53,191.48,4.6993]
[1760960445715,7.4683,191.53,191.5,2.85]
[1760960448502,4.6977,191.55,191.5,2.18037141]
[1760960448704,2.68,191.57,191.51,2.83]
[1760960449502,6.61288539,191.57,191.51,2.83]
[1760960450006,2.68,191.56,191.5,2.18037141]
[1760960450901,2.68,191.56,191.49,4.699]
[1760960451101,2.68,191.54,191.49,6.87937141]
[1760960451499,2.68,191.54,191.5,2.83]
[1760960452806,4.6978,191.55,191.52,2.83]
[1760960453101,4.6973,191.57,191.51,5.01037141]
[1760960453303,2.18037141,191.59,191.51,2.18037141]
[1760960453504,10.36263493,191.58,191.5,4.6987]
[1760960453808,2.68,191.56,191.5,4.6987]
[1760960454808,2.68,191.55,191.51,2.18037141]
[1760960455111,4.6977,191.55,191.52,2.83]
[1760960455403,7.3777,191.55,191.52,2.83]
[1760960455708,2.68,191.54,191.51,5.01037141]
[1760960456998,2.68,191.53,191.5,7.5287]
[1760960457197,7.3777,191.55,191.51,2.83]
[1760960457402,4.6973,191.57,191.52,2.83]
[1760960457712,2.68,191.59,191.28,73.1783]
[1760960457713,2.68,191.59,191.55,5.01037141]
[1760960458008,2.68,191.59,191.56,2.83]
[1760960458209,2.68,191.63,191.57,2.18037141]
[1760960458399,2.68,191.61,191.57,2.18037141]
[1760960458601,2.68,191.61,191.57,5.01037141]
[1760960459010,2.68,191.61,191.58,2.83]
[1760960461803,5.93479858,191.64,191.57,2.18037141]
[1760960462001,3.93589299,191.63,191.55,6.87787141]
[1760960462203,2.68,191.61,191.55,2.18037141]
[1760960462405,7.3764,191.61,191.55,2.18037141]
[1760960462602,2.68,191.61,191.54,6.87817141]
[1760960462915,6.61428907,191.61,191.54,6.87817141]
[1760960463205,2.68,191.61,191.54,6.87817141]
[1760960464007,4.6968,191.59,191.55,2.83]
[1760960464314,2.68,191.61,191.57,2.83]
[1760960464608,7.3763,191.61,191.57,2.83]
[1760960464813,2.68,191.61,191.54,2.18037141]
[1760960465405,2.68,191.61,191.52,2.83]
[1760960465714,2.68,191.61,191.54,2.18037141]
[1760960466105,2.18037141,191.62,191.55,2.83]
[1760960466106,7.3768,191.59,191.55,2.83]
[1760960466510,4.6968,191.59,191.55,2.83]
[1760960466711,7.3768,191.59,191.55,2.83]
[1760960467809,2.68,191.58,191.55,2.83]
[1760960468510,4.697,191.58,191.52,2.18037141]
[1760960468719,4.697,191.58,191.51,7.5285]
[1760960469119,4.6973,191.57,191.51,7.5285]
[1760960469713,4.6973,191.57,191.53,2.83]
[1760960469916,7.3773,191.57,191.53,2.83]
[1760960471317,4.6975,191.56,191.5,7.5288]
[1760960473718,29.92858798,191.62,191.48,4.6992]
[1760960473920,2.66,191.55,191.47,2.64]
[1760960474218,7.3589,191.51,191.44,4.7003]
[1760960474420,7.3589,191.51,191.44,7.3403]
[1760960476418,7.3589,191.51,191.45,4.7]
[1760960477520,6.36132979,191.52,191.38,2.66]
[1760960477726,6.53879865,191.52,191.38,2.66]
[1760960478020,10.29012844,191.52,191.38,2.66]
[1760960478320,3.40560832,191.5,191.38,2.66]
[1760960478527,2.61,191.49,191.38,2.66]
[1760960479020,2.61,191.49,191.38,6.06560832]
[1760960480112,4.6998,191.47,191.41,2.66]
[1760960480426,2.61,191.49,191.41,2.66]
[1760960481124,2.61,191.49,191.41,6.06560832]
[1760960482026,2.61,191.58,191.48,2.66]
[1760960482233,2.61,191.58,191.51,2.66]
[1760960482427,7.307,191.58,191.51,2.66]
[1760960483921,4.6973,191.57,191.51,2.66]
[1760960486135,2.61,191.58,191.51,7.3585]
[1760960486631,7.3071,191.58,191.51,7.3585]
[1760960487220,2.61,191.58,191.51,7.3585]
[1760960488033,4.6973,191.57,191.51,7.3585]
[1760960489332,4.6968,191.59,191.53,3.40560832]
[1760960489537,6.53886099,191.6,191.53,3.40560832]
[1760960489929,2.61,191.6,191.53,3.40560832]
[1760960490232,2.61,191.61,191.53,3.40560832]
[1760960490433,2.61,191.56,191.5,3.40560832]
[1760960492129,2.61,191.54,191.5,3.40560832]
[1760960492332,2.61,191.57,191.48,2.66]
[1760960493633,2.61,191.57,191.39,43.44]
[1760960493634,2.61,191.54,191.44,2.66]
[1760960493819,3.92922875,191.53,191.44,2.66]
[1760960494223,2.61,191.52,191.44,2.66]
[1760960494428,4.6993,191.49,191.44,2.66]
[1760960494627,2.61,191.48,191.44,2.66]
[1760960500731,2.61,191.48,191.43,2.66]
[1760960501038,2.61,191.52,191.44,2.66]
[1760960501731,4.6995,191.48,191.44,2.66]
[1760960501930,7.3095,191.48,191.44,2.66]
[1760960502129,2.61,191.47,191.44,2.66]
[1760960502734,7.3097,191.47,191.44,2.66]
[1760960503536,7.3097,191.47,191.41,4.701]
[1760960503737,2.61,191.47,191.4,2.66]
[1760960504737,7.3097,191.47,191.4,7.3612]
[1760960504939,4.6997,191.47,191.39,3.40560832]
[1760960505244,4.6997,191.47,191.4,2.66]
[1760960505934,4.6997,191.47,191.41,4.7009]
[1760960506243,4.6992,191.49,191.43,2.66]
[1760960506642,4.6992,191.49,191.43,7.3604]
[1760960506847,4.6992,191.49,191.44,2.66]
[1760960507039,4.6992,191.49,191.43,2.66]
[1760960508039,4.6992,191.49,191.44,4.7002]
[1760960508245,7.3992,191.49,191.45,2.8]
[1760960508651,7.3992,191.49,191.46,2.8]
[1760960510444,4.6992,191.49,191.46,2.8]
[1760960510647,4.6988,191.51,191.46,2.8]
[1760960510843,4.6988,191.51,191.43,2.8]
[1760960511749,4.699,191.5,191.44,4.7003]
[1760960511942,2.7,191.52,191.44,4.7003]
[1760960512143,2.7,191.47,191.43,2.8]
[1760960512650,2.7,191.46,191.43,2.8]
[1760960513052,2.7,191.46,191.39,3.40560832]
[1760960513053,3.40560832,191.5,191.4,4.7012]
[1760960513253,2.7,191.49,191.4,4.7012]
[1760960513749,4.7,191.46,191.4,4.7012]
[1760960514752,4.7,191.46,191.42,2.8]
[1760960514951,4.7,191.46,191.43,2.8]